bitfinex/quotes_BTCUSD_20240902
["timestamp","ask_amount","ask_price","bid_price","bid_amount"]
[1725252778260,0.24959844,57669.0,57668.0,0.01960162]
[1725252778721,0.24859844,57669.0,57668.0,0.01260162]
[1725252778954,0.12721644,57669.0,57668.0,0.01260162]
[1725252779169,0.12721644,57669.0,57668.0,0.0059009]
[1725252779630,0.12721644,57669.0,57668.0,0.01260162]
[1725252779884,0.49136244,57669.0,57668.0,0.0059009]
[1725252780093,0.49136244,57669.0,57668.0,0.01260162]
[1725252780094,0.63229166,57669.0,57668.0,0.01260162]
[1725252780304,0.99238483,57669.0,57668.0,0.0059009]
[1725252780700,0.92915566,57669.0,57668.0,0.0059009]
[1725252783028,0.49136244,57669.0,57668.0,0.0059009]
[1725252783468,0.12721644,57669.0,57668.0,0.0059009]
[1725252783923,0.12721644,57669.0,57668.0,0.01260162]
[1725252784151,0.12721644,57669.0,57668.0,0.0059009]
[1725252784340,0.02721644,57669.0,57668.0,0.01260162]
[1725252787986,0.02721644,57669.0,57668.0,0.13398562]
[1725252788434,0.02721644,57669.0,57668.0,0.45431768]
[1725252788656,0.02721644,57669.0,57668.0,0.21154968]
[1725252789168,0.02721644,57669.0,57668.0,0.53305362]
[1725252789388,0.02721644,57669.0,57668.0,0.77582162]
[1725252789598,0.02721644,57669.0,57668.0,0.77082162]
[1725252789773,0.02821644,57669.0,57668.0,0.78182162]
[1725252794726,0.02821644,57669.0,57668.0,1.02458962]
[1725252794945,0.02821644,57669.0,57668.0,1.12724858]
[1725252796025,0.02821644,57669.0,57668.0,0.01860162]
[1725252796276,0.62449244,57669.0,57668.0,0.01860162]
[1725252796494,1.6043877,57669.0,57668.0,0.0119009]
[1725252796716,1.75595366,57669.0,57668.0,0.0119009]
[1725252796930,1.87293934,57669.0,57668.0,0.0119009]
[1725252797355,1.71226629,57669.0,57668.0,0.0009009]
[1725252797574,1.30460665,57669.0,57668.0,0.0039009]
[1725252797820,1.29052944,57669.0,57668.0,0.0039009]
[1725252799097,1.29052944,57669.0,57668.0,0.0009009]
[1725252801956,1.087531,57669.0,57668.0,0.0009009]
[1725252802162,1.208913,57669.0,57668.0,0.0009009]
[1725252802363,0.972674,57669.0,57668.0,0.0009009]
[1725252802995,1.419165,57669.0,57668.0,0.0009009]
[1725252803204,1.350922,57669.0,57668.0,0.0009009]
[1725252803414,0.972674,57669.0,57668.0,0.0009009]
[1725252803617,1.222571,57669.0,57668.0,0.0009009]
[1725252803823,1.124665,57669.0,57668.0,0.0009009]
[1725252804851,1.1428274,57669.0,57668.0,0.0009009]
[1725252805307,1.56592115,57669.0,57668.0,0.0009009]
[1725252805532,1.58009891,57669.0,57668.0,0.0009009]
[1725252807485,2.00997391,57669.0,57668.0,0.0009009]
[1725252808610,1.85686225,57669.0,57668.0,0.0009009]
[1725252809046,0.849926,57652.0,57651.0,0.0693009]
[1725252809258,0.99085522,57652.0,57651.0,0.0693009]
[1725252809471,1.55428122,57652.0,57651.0,0.00738682]
[1725252809706,1.58150482,57652.0,57651.0,0.0009009]
[1725252809930,1.38391482,57652.0,57651.0,0.0009009]
[1725252810146,1.5223063,57652.0,57651.0,0.0009009]
[1725252810355,1.6864173,57652.0,57651.0,0.0149009]
[1725252810813,1.54802582,57652.0,57651.0,0.0149009]
[1725252811010,1.52559682,57652.0,57651.0,0.0149009]
[1725252811225,1.48697182,57652.0,57651.0,0.0149009]
[1725252811681,1.48697182,57652.0,57651.0,0.0009009]
[1725252811887,1.48697182,57652.0,57651.0,0.0089009]
[1725252812307,1.48697182,57652.0,57651.0,0.0009009]
[1725252812723,1.48697182,57652.0,57651.0,0.0039009]
[1725252812934,1.38391482,57652.0,57651.0,0.0039009]
[1725252813137,1.38391482,57652.0,57651.0,0.0009009]
[1725252813353,1.50039182,57652.0,57651.0,0.0009009]
[1725252813563,1.50039182,57652.0,57651.0,0.0019009]
[1725252814395,1.38391482,57652.0,57651.0,0.0019009]
[1725252814814,1.38391482,57652.0,57651.0,0.0009009]
[1725252815076,1.38391482,57652.0,57651.0,0.0019009]
[1725252816120,1.38391482,57652.0,57651.0,0.0037009]
[1725252818240,1.36091482,57652.0,57651.0,0.0037009]
[1725252818461,0.9771496,57652.0,57651.0,0.1645009]
[1725252819114,0.9771496,57652.0,57651.0,0.0756009]
[1725252819358,1.2199856,57652.0,57651.0,0.0756009]
[1725252819540,1.4970063,57652.0,57651.0,0.0037009]
[1725252819761,1.5200063,57652.0,57651.0,0.0037009]
[1725252819981,1.38391482,57652.0,57651.0,0.0037009]
[1725252820213,2.20861682,57652.0,57651.0,0.0037009]
[1725252820462,2.22677922,57652.0,57651.0,0.0037009]
[1725252820697,1.98394322,57652.0,57651.0,0.0037009]
[1725252820872,1.81361422,57652.0,57651.0,0.0027009]
[1725252821078,1.81361422,57652.0,57651.0,0.0077009]
[1725252822805,1.81361422,57652.0,57651.0,0.0059009]
[1725252822806,1.98214322,57652.0,57651.0,0.0059009]
[1725252824927,1.82684022,57652.0,57651.0,0.0059009]
[1725252825384,1.82884022,57652.0,57651.0,0.0059009]
[1725252825595,1.82684022,57652.0,57651.0,0.0059009]
[1725252826227,1.99539186,57652.0,57651.0,0.0059009]
[1725252827754,2.23822786,57652.0,57651.0,0.0059009]
[1725252827965,2.24022786,57652.0,57651.0,0.0059009]
[1725252828185,2.23822786,57652.0,57651.0,0.0059009]
[1725252828632,2.24022786,57652.0,57651.0,0.0059009]
[1725252829732,2.23822786,57652.0,57651.0,0.0059009]
[1725252830163,1.685911,57652.0,57651.0,0.0059009]
[1725252830376,1.51962122,57652.0,57651.0,0.0761009]
[1725252830588,1.55931322,57652.0,57651.0,0.0761009]
[1725252831670,1.53834222,57652.0,57651.0,0.0761009]
[1725252832084,1.40027722,57652.0,57651.0,0.0761009]
[1725252832944,1.50575822,57652.0,57651.0,0.0761009]
[1725252833624,1.51061122,57652.0,57651.0,0.0761009]
[1725252835511,1.40027722,57652.0,57651.0,0.0761009]
[1725252835729,0.993512,57652.0,57651.0,0.0761009]
[1725252837677,0.99433,57652.0,57651.0,0.0711009]
[1725252838780,0.751494,57652.0,57651.0,0.0711009]
[1725252842314,0.508658,57652.0,57651.0,0.0711009]
[1725252842528,0.265822,57652.0,57651.0,0.0711009]
[1725252842739,0.265822,57652.0,57651.0,0.1581009]
[1725252842740,0.146204,57652.0,57651.0,0.1581009]
[1725252843153,0.146204,57652.0,57651.0,0.16958682]
[1725252843981,0.121409,57656.0,57653.0,0.1603]
[1725252844186,0.121409,57656.0,57654.0,0.1603]
[1725252844391,0.14863074,57656.0,57655.0,0.0733]
[1725252844598,0.14863074,57656.0,57655.0,0.07976775]
[1725252845457,1.01801696,57656.0,57655.0,0.00646775]
[1725252845877,0.60709,57652.0,57651.0,0.0009009]
[1725252846094,0.70709,57652.0,57651.0,0.0009009]
[1725252847345,0.70709,57652.0,57651.0,0.0079009]
[1725252847963,0.70709,57652.0,57651.0,0.0149009]
[1725252849089,0.585672,57652.0,57651.0,0.0149009]
[1725252849292,0.585672,57652.0,57651.0,0.0009009]
[1725252849499,0.70809,57652.0,57651.0,0.0079009]
[1725252850151,0.70709,57652.0,57651.0,0.0009009]
[1725252850387,0.465254,57652.0,57651.0,0.1692009]
[1725252850611,0.222418,57652.0,57651.0,0.17551167]
[1725252850848,0.223236,57652.0,57651.0,0.17551167]
[1725252852120,0.223236,57652.0,57651.0,0.31547163]
[1725252852121,0.001818,57652.0,57651.0,0.31547163]
[1725252852359,0.001818,57652.0,57651.0,0.55831163]
[1725252852997,0.001818,57652.0,57651.0,0.80115163]
[1725252854877,0.001818,57652.0,57651.0,1.04399163]
[1725252855947,0.000818,57652.0,57651.0,1.03599163]
[1725252856183,0.001818,57652.0,57651.0,1.04699163]
[1725252857252,0.001818,57652.0,57651.0,1.02845167]
[1725252870108,0.001818,57652.0,57651.0,0.17851167]
[1725252870313,0.001818,57652.0,57651.0,0.13963167]
[1725252870722,0.001818,57652.0,57651.0,0.01821167]
[1725252870922,0.123236,57652.0,57651.0,0.01821167]
[1725252871135,0.223236,57652.0,57651.0,0.01821167]
[1725252871366,0.223236,57652.0,57651.0,0.0119009]
[1725252871799,0.223236,57652.0,57651.0,0.01821167]
[1725252872953,1.2335472,57652.0,57651.0,0.01821167]
[1725252873164,1.2515472,57652.0,57651.0,0.01821167]
[1725252873370,1.2515472,57652.0,57651.0,0.0119009]
[1725252874127,1.2565472,57652.0,57651.0,0.0119009]
[1725252875432,1.2023704,57652.0,57651.0,0.0009009]
[1725252875606,1.2023704,57652.0,57651.0,0.0069009]
[1725252876014,1.21659004,57652.0,57651.0,0.0069009]
[1725252876389,1.21659004,57652.0,57651.0,0.0009009]
[1725252876810,0.9919064,57652.0,57651.0,0.0009009]
[1725252878744,0.7260704,57652.0,57651.0,0.0009009]
[1725252879678,0.4832344,57652.0,57651.0,0.0029009]
[1725252880092,0.1189804,57652.0,57651.0,0.0029009]
[1725252880304,0.122236,57652.0,57651.0,0.0029009]
[1725252880532,0.222236,57652.0,57651.0,0.0089366]
[1725252880739,0.465072,57652.0,57651.0,0.0029009]
[1725252880945,0.465072,57652.0,57651.0,0.0089366]
[1725252881153,0.465072,57652.0,57651.0,0.0029009]
[1725252881390,0.49229638,57652.0,57651.0,0.0089366]
[1725252881600,0.49229638,57652.0,57651.0,0.0923009]
[1725252881820,0.49229638,57652.0,57651.0,0.0983366]
[1725252882469,0.24946038,57652.0,57651.0,0.0983366]
[1725252882693,0.12804238,57652.0,57651.0,0.0983366]
[1725252882907,0.12804238,57652.0,57651.0,0.1670366]
[1725252884491,0.02804238,57652.0,57651.0,0.1670366]
[1725252885201,0.02804238,57652.0,57651.0,0.2884566]
[1725252886760,0.02804238,57652.0,57651.0,0.5312966]
[1725252887844,0.02804238,57652.0,57651.0,0.7741366]
[1725252888258,0.02804238,57652.0,57651.0,0.7721366]
[1725252888672,0.02804238,57652.0,57651.0,0.7831366]
[1725252891312,0.02804238,57652.0,57651.0,1.0259766]
[1725252892289,0.121394,57664.0,57658.0,0.121403]
[1725252892519,0.121396,57663.0,57659.0,0.0657]
[1725252892771,0.121396,57663.0,57659.0,0.07169938]
[1725252893433,0.13561569,57663.0,57659.0,0.07169938]
[1725252893900,0.121396,57663.0,57659.0,0.07169938]
[1725252894327,0.221397,57662.0,57659.0,0.07169938]
[1725252894747,0.1,57662.0,57659.0,0.07169938]
[1725252894956,0.1,57662.0,57659.0,0.19310238]
[1725252895166,0.121394,57664.0,57659.0,0.19310238]
[1725252895167,0.1,57663.0,57659.0,0.19310238]
[1725252896655,0.1,57663.0,57659.0,0.19310138]
[1725252896865,0.1,57663.0,57660.0,0.2095]
[1725252896866,0.000818,57662.0,57660.0,0.2095]
[1725252897303,0.000818,57662.0,57661.0,0.0059903]
[1725252898649,0.100818,57662.0,57661.0,0.0059903]
[1725252898859,0.000818,57662.0,57661.0,0.0059903]
[1725252899296,0.221393,57664.0,57661.0,0.0059903]
[1725252899508,0.121393,57664.0,57661.0,0.0059903]
[1725252901304,0.23993734,57666.0,57661.0,0.0059903]
[1725252901505,0.121395,57663.0,57661.0,0.0059903]
[1725252901743,0.1,57662.0,57661.0,0.0059903]
[1725252902693,0.12721946,57662.0,57661.0,0.0059903]
[1725252902925,0.14861646,57662.0,57661.0,0.0059903]
[1725252903153,0.24861646,57662.0,57661.0,0.0059903]
[1725252903387,0.12721946,57662.0,57659.0,0.0657]
[1725252903617,0.12721946,57662.0,57661.0,0.0059903]
[1725252904077,0.12721946,57662.0,57659.0,0.0657]
[1725252904549,0.1,57661.0,57660.0,0.00599484]
[1725252905721,0.12721946,57662.0,57660.0,0.00599484]
[1725252906645,0.1,57661.0,57660.0,0.00599484]
[1725252907077,0.02721946,57662.0,57660.0,0.00599484]
[1725252907556,0.02721946,57662.0,57661.0,0.086]
[1725252907793,0.02721946,57662.0,57661.0,0.11990028]
[1725252908015,0.02721946,57662.0,57661.0,0.1613903]
[1725252909283,0.02721946,57662.0,57661.0,0.1743903]
[1725252909513,0.02721946,57662.0,57661.0,0.2957893]
[1725252910171,0.02721946,57662.0,57661.0,0.7813853]
[1725252910387,0.02721946,57662.0,57661.0,0.62578592]
[1725252910628,0.02721946,57662.0,57661.0,0.5385873]
[1725252911268,0.02721946,57662.0,57661.0,0.5255873]
[1725252911480,0.02721946,57662.0,57661.0,0.5395873]
[1725252911688,0.02721946,57662.0,57661.0,0.2967893]
[1725252911902,0.02721946,57662.0,57661.0,0.2827893]
[1725252912121,0.02721946,57662.0,57661.0,0.5255873]
[1725252912338,0.02721946,57662.0,57661.0,0.5395873]
[1725252912818,0.02721946,57662.0,57661.0,0.2967893]
[1725252913032,0.010818,57664.0,57661.0,0.1753903]
[1725252914106,0.010818,57664.0,57661.0,0.1613903]
[1725252914312,0.010818,57664.0,57661.0,0.1753903]
[1725252914726,0.03803611,57664.0,57661.0,0.1753903]
[1725252918913,0.03803611,57664.0,57663.0,0.45088606]
[1725252919156,0.03803611,57664.0,57663.0,0.85217606]
[1725252919394,0.03803611,57664.0,57663.0,0.85800889]
[1725252920065,0.010818,57664.0,57663.0,0.85800889]
[1725252920828,0.010818,57664.0,57663.0,0.87200889]
[1725252921061,0.010818,57664.0,57663.0,0.9869954]
[1725252921520,0.03803253,57664.0,57663.0,0.9729954]
[1725252922393,0.03803253,57664.0,57663.0,0.9869954]
[1725252922612,0.03803253,57664.0,57663.0,1.2297854]
[1725252924163,0.03803253,57664.0,57663.0,1.2157854]
[1725252924610,0.03803253,57664.0,57663.0,1.2297854]
[1725252928851,0.03803253,57664.0,57663.0,1.2397854]
[1725252930006,0.03803253,57664.0,57663.0,1.2377854]
[1725252930743,0.03803253,57664.0,57663.0,1.2397854]
[1725252930988,0.03803253,57664.0,57663.0,1.12479889]
[1725252931245,0.010818,57664.0,57663.0,1.03809783]
[1725252931470,0.010818,57664.0,57663.0,1.10879889]
[1725252931698,0.010818,57664.0,57663.0,1.09296606]
[1725252931923,0.010818,57664.0,57663.0,1.10696606]
[1725252932142,0.010818,57664.0,57663.0,1.11696606]
[1725252932358,0.010818,57664.0,57663.0,1.10296606]
[1725252932791,0.010818,57664.0,57663.0,1.10496606]
[1725252932998,0.010818,57664.0,57663.0,1.23792253]
[1725252933636,0.010818,57664.0,57663.0,0.274895]
[1725252933862,0.010818,57664.0,57663.0,0.16700106]
[1725252934298,0.010818,57664.0,57663.0,0.15300106]
[1725252934528,0.010818,57664.0,57663.0,0.0823]
[1725252934738,0.010818,57664.0,57663.0,0.203695]
[1725252934949,0.010818,57664.0,57663.0,0.189695]
[1725252935386,0.010818,57664.0,57663.0,0.0823]
[1725252935608,0.13221,57664.0,57663.0,0.014]
[1725252935839,0.110818,57664.0,57663.0,0.014]
[1725252936052,0.23221,57664.0,57663.0,0.014]
[1725252936508,0.121392,57664.0,57663.0,0.014]
[1725252937374,0.000818,57668.0,57661.0,0.0008998]
[1725252937584,0.121393,57664.0,57661.0,0.0008998]
[1725252937796,0.12139,57666.0,57663.0,0.014]
[1725252938001,0.364161,57667.0,57663.0,0.014]
[1725252938223,0.000818,57668.0,57661.0,0.0008998]
[1725252938449,0.242776,57667.0,57661.0,0.0008998]
[1725252938653,0.121392,57665.0,57661.0,0.0148998]
[1725252938875,0.1,57664.0,57661.0,0.0148998]
[1725252939336,0.1,57664.0,57661.0,0.0008998]
[1725252939764,0.221393,57664.0,57661.0,0.0008998]
[1725252939952,0.0181624,57663.0,57661.0,0.0008998]
[1725252941146,0.0181624,57663.0,57661.0,0.0148998]
[1725252941364,0.04538119,57663.0,57661.0,0.0148998]
[1725252941573,0.04538119,57663.0,57661.0,0.0008998]
[1725252941988,0.04538119,57663.0,57661.0,0.0148998]
[1725252943470,0.124997,57662.0,57661.0,0.0148998]
[1725252943694,0.467791,57662.0,57661.0,0.0148998]
[1725252944517,0.467791,57662.0,57661.0,0.0008998]
[1725252944758,0.467791,57662.0,57661.0,0.0148998]
[1725252945512,0.710585,57662.0,57661.0,0.0148998]
[1725252946823,0.706985,57662.0,57661.0,0.0148998]
[1725252947040,0.712485,57662.0,57661.0,0.0148998]
[1725252947257,0.712485,57662.0,57661.0,0.0008998]
[1725252947470,0.712485,57662.0,57661.0,0.0098998]
[1725252947906,0.712485,57662.0,57661.0,0.0008998]
[1725252948353,0.712485,57662.0,57661.0,0.0098998]
[1725252949501,0.68827204,57662.0,57661.0,0.0098998]
[1725252950544,0.68827204,57662.0,57661.0,0.0008998]
[1725252950964,0.491088,57662.0,57661.0,0.0098998]
[1725252951174,0.369691,57662.0,57661.0,0.0098998]
[1725252953193,0.469691,57662.0,57661.0,0.0098998]
[1725252955336,0.226897,57662.0,57661.0,0.0098998]
[1725252956169,0.221397,57662.0,57661.0,0.0098998]
[1725252957356,0.1,57662.0,57661.0,0.0098998]
[1725252957576,0.26677619,57663.0,57661.0,0.0098998]
[1725252958487,0.26677619,57663.0,57661.0,0.0008998]
[1725252958696,0.26677619,57663.0,57661.0,0.0088998]
[1725252960637,0.14538119,57663.0,57661.0,0.0088998]
[1725252960884,0.04538119,57663.0,57661.0,0.0088998]
[1725252966242,0.121397,57662.0,57661.0,0.0088998]
[1725252966444,0.1,57662.0,57661.0,0.0088998]
[1725252967067,0.221397,57662.0,57661.0,0.0008998]
[1725252967503,0.1,57662.0,57661.0,0.0098998]
[1725252969682,0.221397,57662.0,57661.0,0.0098998]
[1725252969909,0.1,57662.0,57661.0,0.0098998]
[1725252970122,0.14538119,57663.0,57661.0,0.0098998]
[1725252970769,0.26677619,57663.0,57661.0,0.0098998]
[1725252971224,0.26677619,57663.0,57661.0,0.0008998]
[1725252971757,0.121397,57662.0,57661.0,0.0088998]
[1725252972004,0.221397,57662.0,57661.0,0.0088998]
[1725252972717,0.706985,57662.0,57661.0,0.0088998]
[1725252972957,0.248298,57661.0,57649.0,0.0009009]
[1725252973193,0.61259,57652.0,57649.0,0.0009009]
[1725252973406,0.60711,57650.0,57649.0,0.0009009]
[1725252973615,0.464266,57650.0,57649.0,0.0009009]
[1725252974055,0.487266,57650.0,57649.0,0.0009009]
[1725252974500,0.972954,57650.0,57649.0,0.0009009]
[1725252974715,0.73011,57650.0,57649.0,0.0009009]
[1725252975851,0.70711,57650.0,57649.0,0.0009009]
[1725252976067,0.70711,57650.0,57649.0,0.0925009]
[1725252976068,0.1,57650.0,57649.0,0.0925009]
[1725252976504,0.101,57650.0,57649.0,0.1005009]
[1725252976725,0.001,57650.0,57649.0,0.1005009]
[1725252976984,0.121422,57650.0,57649.0,0.0925009]
[1725252977201,0.464266,57650.0,57649.0,0.0925009]
[1725252977424,0.222422,57650.0,57649.0,0.0995009]
[1725252977630,0.465266,57650.0,57649.0,0.0995009]
[1725252977842,0.70811,57650.0,57649.0,0.0079009]
[1725252979410,0.101,57650.0,57649.0,0.1668009]
[1725252979636,0.222422,57650.0,57649.0,0.1668009]
[1725252980480,0.101,57650.0,57649.0,0.1668009]
[1725252980925,0.101,57650.0,57649.0,0.2882249]
[1725252981138,0.001,57650.0,57649.0,0.1668009]
[1725252983031,0.465266,57650.0,57649.0,0.1668009]
[1725252983218,0.70811,57650.0,57649.0,0.1668009]
[1725252984283,0.70811,57650.0,57649.0,0.0753009]
[1725252984678,0.950954,57650.0,57649.0,0.0753009]
[1725252986643,0.70811,57650.0,57649.0,0.0753009]
[1725252987152,0.222422,57650.0,57649.0,0.25100196]
[1725252988002,0.465266,57650.0,57649.0,0.25100196]
[1725252990951,0.70811,57650.0,57649.0,0.25100196]
[1725252992559,0.44415213,57650.0,57649.0,0.25100196]
[1725252992776,0.54415213,57650.0,57649.0,0.25100196]
[1725252993252,0.66557413,57650.0,57649.0,0.25100196]
[1725252994169,0.90841813,57650.0,57649.0,0.0079009]
[1725252996905,0.90841813,57650.0,57649.0,0.0751009]
[1725252999241,0.66557413,57650.0,57649.0,0.0751009]
[1725252999453,0.66557413,57650.0,57649.0,0.16900839]
[1725252999660,0.66557413,57650.0,57649.0,0.1597009]
[1725253000702,0.1,57650.0,57649.0,0.1597009]
[1725253000907,0.1404004,57651.0,57649.0,0.1597009]
[1725253001150,0.1404004,57651.0,57650.0,0.24180106]
[1725253002281,0.2414004,57651.0,57650.0,0.24180106]
[1725253002738,0.2404004,57651.0,57650.0,0.24180106]
[1725253002939,0.2414004,57651.0,57650.0,0.24780106]
[1725253003575,0.26862399,57651.0,57650.0,0.24780106]
[1725253004835,0.51046399,57651.0,57650.0,0.1571]
[1725253005050,0.75330399,57651.0,57650.0,0.1571]
[1725253005273,0.7270804,57651.0,57650.0,0.0815]
[1725253005505,0.9699204,57651.0,57650.0,0.0815]
[1725253005716,0.9699204,57651.0,57650.0,0.012]
[1725253008206,0.99710489,57651.0,57650.0,0.012]
[1725253008848,0.9698804,57651.0,57650.0,0.012]
[1725253009287,0.7270404,57651.0,57650.0,0.012]
[1725253012051,0.75426455,57651.0,57650.0,0.012]
[1725253013087,0.73614215,57651.0,57650.0,0.012]
[1725253013291,0.5784423,57651.0,57650.0,0.012]
[1725253013523,0.5966047,57651.0,57650.0,0.012]
[1725253013710,0.5784423,57651.0,57650.0,0.012]
[1725253015239,0.6784423,57651.0,57650.0,0.012]
[1725253020145,0.6784423,57651.0,57650.0,0.0128998]
[1725253020559,0.6792603,57651.0,57650.0,0.0128998]
[1725253020777,0.9221003,57651.0,57650.0,0.0128998]
[1725253023242,0.97382962,57651.0,57650.0,0.0128998]
[1725253025592,1.32255883,57651.0,57650.0,0.0128998]
[1725253025807,1.46181748,57651.0,57650.0,0.0128998]
[1725253026034,1.91300068,57651.0,57650.0,0.0128998]
[1725253026266,2.04229703,57651.0,57650.0,0.0128998]
[1725253026510,1.91300068,57651.0,57650.0,0.0128998]
[1725253026736,2.08155232,57651.0,57650.0,0.0128998]
[1725253027398,2.02238801,57651.0,57650.0,0.0008998]
[1725253028076,2.02238801,57651.0,57650.0,0.0048998]
[1725253028312,1.64682965,57651.0,57650.0,0.0048998]
[1725253028730,1.42571965,57651.0,57650.0,0.0048998]
[1725253028941,1.29246865,57651.0,57650.0,0.0048998]
[1725253029156,1.44388205,57651.0,57650.0,0.0048998]
[1725253029583,1.52858311,57651.0,57650.0,0.0048998]
[1725253029784,1.68287142,57651.0,57650.0,0.0048998]
[1725253029994,1.69762497,57651.0,57650.0,0.0048998]
[1725253030890,1.54333666,57651.0,57650.0,0.0048998]
[1725253031109,1.78617666,57651.0,57650.0,0.0048998]
[1725253031314,1.65692416,57651.0,57650.0,0.0048998]
[1725253033667,1.41408416,57651.0,57650.0,0.0048998]
[1725253034573,1.49235339,57651.0,57650.0,0.0048998]
[1725253034797,1.38203528,57651.0,57650.0,0.0048998]
[1725253035213,1.45245605,57651.0,57650.0,0.0048998]
[1725253035642,1.52993028,57651.0,57650.0,0.0048998]
[1725253035845,1.45245605,57651.0,57650.0,0.0048998]
[1725253036291,1.62100769,57651.0,57650.0,0.0048998]
[1725253036503,1.69707646,57651.0,57650.0,0.0048998]
[1725253036931,1.27733316,57651.0,57650.0,0.0048998]
[1725253037188,1.38637216,57651.0,57650.0,0.0048998]
[1725253037800,1.25433316,57651.0,57650.0,0.0048998]
[1725253038221,1.38796616,57651.0,57650.0,0.0048998]
[1725253039064,1.41096616,57651.0,57650.0,0.0048998]
[1725253039267,1.51426282,57651.0,57650.0,0.0048998]
[1725253039670,1.41109923,57651.0,57650.0,0.0048998]
[1725253039886,1.41109923,57651.0,57650.0,0.0771998]
[1725253039887,1.40377829,57651.0,57650.0,0.0771998]
[1725253040540,1.32631617,57651.0,57650.0,0.0048998]
[1725253040755,1.40376981,57651.0,57650.0,0.0048998]
[1725253042276,1.38076981,57651.0,57650.0,0.0048998]
[1725253045096,1.22138404,57651.0,57650.0,0.0048998]
[1725253045316,1.16976517,57651.0,57650.0,0.0771998]
[1725253048836,1.22138404,57651.0,57650.0,0.0771998]
[1725253049048,1.16976517,57651.0,57650.0,0.1620998]
[1725253049481,0.92692517,57651.0,57650.0,0.1620998]
[1725253049688,0.93926537,57651.0,57650.0,0.1620998]
[1725253052045,0.95423408,57651.0,57650.0,0.1620998]
[1725253052708,0.92700726,57651.0,57650.0,0.1620998]
[1725253054050,0.81203855,57651.0,57650.0,0.17929857]
[1725253054261,0.81203855,57651.0,57650.0,0.1620998]
[1725253055538,0.66919855,57651.0,57650.0,0.1620998]
[1725253055980,0.69642349,57651.0,57650.0,0.1620998]
[1725253056616,0.69642349,57651.0,57650.0,0.1580998]
[1725253057037,0.66919855,57651.0,57650.0,0.1620998]
[1725253057475,0.66919855,57651.0,57650.0,0.1580998]
[1725253057701,0.66919855,57651.0,57650.0,0.1700998]
[1725253057890,0.67019855,57651.0,57650.0,0.1700998]
[1725253059223,0.42735855,57651.0,57650.0,0.1700998]
[1725253060361,0.11554096,57651.0,57650.0,0.19656868]
[1725253060544,0.001,57651.0,57650.0,0.19656868]
[1725253060757,0.22242,57651.0,57650.0,0.19656868]
[1725253060966,0.46526,57651.0,57650.0,0.19656868]
[1725253061580,0.46526,57651.0,57650.0,0.1700998]
[1725253062212,0.22242,57651.0,57650.0,0.1700998]
[1725253062428,0.46526,57651.0,57650.0,0.1700998]
[1725253062641,0.22242,57651.0,57650.0,0.1700998]
[1725253064251,0.101,57651.0,57650.0,0.1700998]
[1725253064475,0.001,57651.0,57650.0,0.1700998]
[1725253065140,0.001,57651.0,57650.0,0.20905837]
[1725253065368,0.12242,57651.0,57650.0,0.1700998]
[1725253065604,0.22242,57651.0,57650.0,0.1700998]
[1725253067341,0.223238,57651.0,57650.0,0.1700998]
[1725253068501,0.466078,57651.0,57650.0,0.1700998]
[1725253069131,0.48107914,57651.0,57650.0,0.1700998]
[1725253069601,0.466078,57651.0,57650.0,0.1700998]
[1725253071532,0.223238,57651.0,57650.0,0.1700998]
[1725253071996,0.101818,57651.0,57650.0,0.33013368]
[1725253072227,0.223238,57651.0,57650.0,0.1700998]
[1725253072437,0.466078,57651.0,57650.0,0.1700998]
[1725253074608,0.708918,57651.0,57650.0,0.1700998]
[1725253076323,0.7270804,57651.0,57650.0,0.1700998]
[1725253077194,0.2414004,57651.0,57650.0,0.25480086]
[1725253077452,0.4842404,57651.0,57650.0,0.25480086]
[1725253077667,0.4842404,57651.0,57650.0,0.1700998]
[1725253079010,0.1199804,57651.0,57650.0,0.1700998]
[1725253079219,0.1199804,57651.0,57650.0,0.20921118]
[1725253079430,0.0199804,57651.0,57650.0,0.20921118]
[1725253079644,0.0199804,57651.0,57650.0,0.0128998]
[1725253079835,0.88492574,57651.0,57650.0,0.0128998]
[1725253080103,1.22776574,57651.0,57650.0,0.0128998]
[1725253082180,1.25499205,57651.0,57650.0,0.0128998]
[1725253082610,1.22776574,57651.0,57650.0,0.0128998]
[1725253082815,1.25499205,57651.0,57650.0,0.0128998]
[1725253083672,0.98492574,57651.0,57650.0,0.0128998]
[1725253084092,0.98492574,57651.0,57650.0,0.0822998]
[1725253086475,0.74208574,57651.0,57650.0,0.0822998]
[1725253097214,0.76931108,57651.0,57650.0,0.0822998]
[1725253097427,1.01215108,57651.0,57650.0,0.0128998]
[1725253097836,0.98492574,57651.0,57650.0,0.0128998]
[1725253098253,0.74208574,57651.0,57650.0,0.0128998]
[1725253098927,1.0366106,57651.0,57650.0,0.0128998]
[1725253099136,0.98492574,57651.0,57650.0,0.0128998]
[1725253100996,1.01215304,57651.0,57650.0,0.0128998]
[1725253101203,1.1426873,57651.0,57650.0,0.0128998]
[1725253101427,1.22021096,57651.0,57650.0,0.0128998]
[1725253101643,1.1426873,57651.0,57650.0,0.0128998]
[1725253101856,1.3855273,57651.0,57650.0,0.0128998]
[1725253102074,1.48889218,57651.0,57650.0,0.0128998]
[1725253102286,1.3855273,57651.0,57650.0,0.0128998]
[1725253102746,0.98761946,57651.0,57650.0,0.0128998]
[1725253103425,0.96039216,57651.0,57650.0,0.0128998]
[1725253103670,0.77377455,57651.0,57650.0,0.0128998]
[1725253103905,0.72210534,57651.0,57650.0,0.0128998]
[1725253104129,0.96494534,57651.0,57650.0,0.0128998]
[1725253106173,1.01663047,57651.0,57650.0,0.0128998]
[1725253109336,1.01662219,57651.0,57650.0,0.0128998]
[1725253109968,1.04385034,57651.0,57650.0,0.0128998]
[1725253110331,1.01662219,57651.0,57650.0,0.0128998]
[1725253111130,0.96494534,57651.0,57650.0,0.0128998]
[1725253111333,1.01662219,57651.0,57650.0,0.0128998]
[1725253112879,0.99217361,57651.0,57650.0,0.0128998]
[1725253113297,1.04467208,57651.0,57650.0,0.0128998]
[1725253113559,1.04327861,57651.0,57650.0,0.0128998]
[1725253113946,1.04328445,57651.0,57650.0,0.0128998]
[1725253114913,0.96576334,57651.0,57650.0,0.0128998]
[1725253115337,1.04328445,57651.0,57650.0,0.0128998]
[1725253115761,1.28612445,57651.0,57650.0,0.0128998]
[1725253115969,1.59193682,57651.0,57650.0,0.0128998]
[1725253116600,1.40887282,57651.0,57650.0,0.0128998]
[1725253116814,1.43610122,57651.0,57650.0,0.0128998]
[1725253117653,1.43610122,57651.0,57650.0,0.01284708]
[1725253118757,1.43611218,57651.0,57650.0,0.01284708]
[1725253118971,1.45427458,57651.0,57650.0,0.01284708]
[1725253120631,1.29568518,57651.0,57650.0,0.01284708]
[1725253120862,1.19231274,57651.0,57650.0,0.01284708]
[1725253121077,1.29568518,57651.0,57650.0,0.01284708]